[Event "*** Titled Tuesday Blitz"]
[Site "Chess.com"]
[Date "2020.11.24"]
[Round "4"]
[White "RTFrancisco"]
[Black "onetowin"]
[Result "1-0"]
[WhiteElo "2362"]
[BlackElo "2107"]
[TimeControl "180+1"]
[EndTime "10:55:18 PST"]
[Termination "RTFrancisco won by resignation"]

1. c4 {[%clk 0:03:00.9]} 1... f5 {[%clk 0:02:56.5]} 2. Nc3 {[%clk 0:02:55.5]}
2... Nf6 {[%clk 0:02:56.3]} 3. h3 {[%clk 0:02:55.3]} 3... d6 {[%clk 0:02:55.5]}
4. d3 {[%clk 0:02:51.4]} 4... Nc6 {[%clk 0:02:54.5]} 5. Bg5 {[%clk 0:02:50.6]}
5... e5 {[%clk 0:02:53.8]} 6. e3 {[%clk 0:02:42.4]} 6... Be7 {[%clk 0:02:53]} 7.
Be2 {[%clk 0:02:37.6]} 7... O-O {[%clk 0:02:49]} 8. Nf3 {[%clk 0:02:36.6]} 8...
h6 {[%clk 0:02:48]} 9. Bxf6 {[%clk 0:02:36]} 9... Bxf6 {[%clk 0:02:47.2]} 10.
Nd5 {[%clk 0:02:35.4]} 10... Be6 {[%clk 0:02:37]} 11. O-O {[%clk 0:02:33.9]}
11... e4 {[%clk 0:02:27]} 12. dxe4 {[%clk 0:02:27.7]} 12... fxe4 {[%clk
0:02:27.3]} 13. Nd2 {[%clk 0:02:18.7]} 13... Bxb2 {[%clk 0:02:19]} 14. Rb1
{[%clk 0:02:18.2]} 14... Bf6 {[%clk 0:02:09.5]} 15. Nxe4 {[%clk 0:02:16.8]}
15... Bxd5 {[%clk 0:02:05.7]} 16. Qxd5+ {[%clk 0:02:13.3]} 16... Kh8 {[%clk
0:02:03.6]} 17. Rxb7 {[%clk 0:02:13.2]} 17... Ne5 {[%clk 0:01:57.7]} 18. f4
{[%clk 0:01:58.3]} 18... Ng6 {[%clk 0:01:53.7]} 19. Nxf6 {[%clk 0:01:40.9]}
19... Rxf6 {[%clk 0:01:49.1]} 20. Rxc7 {[%clk 0:01:40]} 20... Qxc7 {[%clk
0:01:41.9]} 21. Qxa8+ {[%clk 0:01:39.5]} 21... Rf8 {[%clk 0:01:42]} 22. Qe4
{[%clk 0:01:37.4]} 22... Qc5 {[%clk 0:01:30.8]} 23. Bd3 {[%clk 0:01:21.1]} 23...
Rf6 {[%clk 0:01:22.1]} 24. g3 {[%clk 0:01:03.2]} 24... Nf8 {[%clk 0:01:17.3]}
25. Qd4 {[%clk 0:00:53.1]} 25... Qa3 {[%clk 0:01:12.9]} 26. Rf2 {[%clk
0:00:43.9]} 26... Ne6 {[%clk 0:01:09.9]} 27. Qb2 {[%clk 0:00:41.2]} 27... Qc5
{[%clk 0:01:08.2]} 28. e4 {[%clk 0:00:36.2]} 28... Nd4 {[%clk 0:01:02.4]} 29.
Qb8+ {[%clk 0:00:33.3]} 29... Kh7 {[%clk 0:00:53.5]} 30. e5+ {[%clk 0:00:33.7]}
30... Rg6 {[%clk 0:00:51.9]} 31. Bxg6+ {[%clk 0:00:28]} 31... Kxg6 {[%clk
0:00:52.8]} 32. Qb1+ {[%clk 0:00:21.4]} 32... Kf7 {[%clk 0:00:50.7]} 33. Qd3
{[%clk 0:00:20.6]} 33... dxe5 {[%clk 0:00:47.5]} 34. fxe5+ {[%clk 0:00:21.5]}
34... Ke7 {[%clk 0:00:47.7]} 35. Kh2 {[%clk 0:00:19.3]} 35... Qxe5 {[%clk
0:00:43.7]} 36. Qf1 {[%clk 0:00:16.3]} 36... Ke6 {[%clk 0:00:38.4]} 37. Qd3
{[%clk 0:00:15.5]} 37... h5 {[%clk 0:00:34.9]} 38. h4 {[%clk 0:00:15.2]} 38...
Qd6 {[%clk 0:00:16.1]} 39. Qg6+ {[%clk 0:00:14.8]} 39... Kd7 {[%clk 0:00:15.7]}
40. Rf7+ {[%clk 0:00:15.2]} 40... Kc6 {[%clk 0:00:14.9]} 41. Qxd6+ {[%clk
0:00:15.8]} 41... Kxd6 {[%clk 0:00:15.8]} 42. Rxa7 {[%clk 0:00:16.4]} 1-0

[Event "*** Titled Tuesday Blitz"]
[Site "Chess.com"]
[Date "2020.11.24"]
[Round "4"]
[White "boasovietica"]
[Black "Kapibara_Warri0r"]
[Result "1-0"]
[WhiteElo "2418"]
[BlackElo "2168"]
[TimeControl "180+1"]
[EndTime "10:55:18 PST"]
[Termination "boasovietica won on time"]

1. e4 {[%clk 0:03:00.9]} 1... e5 {[%clk 0:02:59.4]} 2. Nf3 {[%clk 0:02:56.5]}
2... Nc6 {[%clk 0:02:58]} 3. Bb5 {[%clk 0:02:56.2]} 3... a6 {[%clk 0:02:56.7]}
4. Ba4 {[%clk 0:02:56.1]} 4... Nf6 {[%clk 0:02:57.1]} 5. O-O {[%clk 0:02:55.6]}
5... Be7 {[%clk 0:02:57.7]} 6. d3 {[%clk 0:02:48]} 6... b5 {[%clk 0:02:55.3]} 7.
Bb3 {[%clk 0:02:47.7]} 7... O-O {[%clk 0:02:55]} 8. Nc3 {[%clk 0:02:46.5]} 8...
d6 {[%clk 0:02:50.5]} 9. a3 {[%clk 0:02:45]} 9... Be6 {[%clk 0:02:38.2]} 10. Bg5
{[%clk 0:02:43.8]} 10... h6 {[%clk 0:02:27.4]} 11. Bxf6 {[%clk 0:02:41.2]} 11...
Bxf6 {[%clk 0:02:27]} 12. Nd5 {[%clk 0:02:39.8]} 12... Ne7 {[%clk 0:02:15.8]}
13. Nxf6+ {[%clk 0:02:38.8]} 13... gxf6 {[%clk 0:02:14.5]} 14. Nh4 {[%clk
0:02:34]} 14... Kh7 {[%clk 0:02:08.3]} 15. Qh5 {[%clk 0:02:28.8]} 15... Bxb3
{[%clk 0:01:35.8]} 16. cxb3 {[%clk 0:02:27.4]} 16... Rg8 {[%clk 0:01:25.3]} 17.
Qxf7+ {[%clk 0:02:26.7]} 17... Rg7 {[%clk 0:01:25.8]} 18. Qxf6 {[%clk
0:02:26.4]} 18... Qg8 {[%clk 0:01:25.8]} 19. Qf3 {[%clk 0:02:07.7]} 19... Rf8
{[%clk 0:01:23.8]} 20. Qh3 {[%clk 0:02:07.5]} 20... Rf4 {[%clk 0:01:06.8]} 21.
g3 {[%clk 0:01:57.7]} 21... Rfg4 {[%clk 0:00:32.6]} 22. b4 {[%clk 0:01:49.1]}
22... Qb3 {[%clk 0:00:30]} 23. Rad1 {[%clk 0:01:33.9]} 23... Qxb2 {[%clk
0:00:29.5]} 24. Nf5 {[%clk 0:01:32.3]} 24... Nxf5 {[%clk 0:00:29.1]} 25. exf5
{[%clk 0:01:32.4]} 25... Qd4 {[%clk 0:00:25]} 26. Kg2 {[%clk 0:01:00.6]} 26...
Qd5+ {[%clk 0:00:24.8]} 27. f3 {[%clk 0:01:00.7]} 27... R4g5 {[%clk 0:00:21]}
28. g4 {[%clk 0:00:53.2]} 28... Rxf5 {[%clk 0:00:18.9]} 29. Kh1 {[%clk
0:00:48.7]} 29... Rf4 {[%clk 0:00:18.4]} 30. Qg3 {[%clk 0:00:48]} 30... Rd4
{[%clk 0:00:18.1]} 31. h3 {[%clk 0:00:44.3]} 31... Rxd3 {[%clk 0:00:18.2]} 32.
Rxd3 {[%clk 0:00:44.3]} 32... Qxd3 {[%clk 0:00:19.1]} 33. Rg1 {[%clk 0:00:44.9]}
33... Qxa3 {[%clk 0:00:18.2]} 34. h4 {[%clk 0:00:43.5]} 34... Qxb4 {[%clk
0:00:18.1]} 35. g5 {[%clk 0:00:42.9]} 35... hxg5 {[%clk 0:00:18.2]} 36. hxg5
{[%clk 0:00:42.7]} 36... Kg8 {[%clk 0:00:18.3]} 37. g6 {[%clk 0:00:35.8]} 37...
Qf4 {[%clk 0:00:18]} 38. Qh3 {[%clk 0:00:35.3]} 38... Qf6 {[%clk 0:00:04.9]} 39.
Qc8+ {[%clk 0:00:33.3]} 39... Qf8 {[%clk 0:00:01.7]} 40. Qe6+ {[%clk 0:00:33.4]}
40... Kh8 {[%clk 0:00:01.6]} 41. Rg3 {[%clk 0:00:30.8]} 1-0

[Event "*** Titled Tuesday Blitz"]
[Site "Chess.com"]
[Date "2020.11.24"]
[Round "4"]
[White "BogdanDeac"]
[Black "machupichu10"]
[Result "1-0"]
[WhiteElo "2901"]
[BlackElo "2754"]
[TimeControl "180+1"]
[EndTime "10:55:19 PST"]
[Termination "BogdanDeac won by resignation"]

1. Nf3 {[%clk 0:03:00.9]} 1... d5 {[%clk 0:02:57.4]} 2. e3 {[%clk 0:03:00.6]}
2... Nf6 {[%clk 0:02:57]} 3. c4 {[%clk 0:03:00.6]} 3... c6 {[%clk 0:02:51.1]} 4.
Nc3 {[%clk 0:03:00.1]} 4... e6 {[%clk 0:02:14]} 5. d4 {[%clk 0:02:58]} 5... Nbd7
{[%clk 0:02:14.1]} 6. Qc2 {[%clk 0:02:58]} 6... Bd6 {[%clk 0:02:10.6]} 7. Be2
{[%clk 0:02:58]} 7... O-O {[%clk 0:02:10.1]} 8. O-O {[%clk 0:02:57.8]} 8... Re8
{[%clk 0:02:10.5]} 9. Rd1 {[%clk 0:02:55.5]} 9... Qe7 {[%clk 0:01:46.7]} 10. e4
{[%clk 0:02:28.8]} 10... dxe4 {[%clk 0:01:46.2]} 11. Nxe4 {[%clk 0:02:29]} 11...
Nxe4 {[%clk 0:01:46.5]} 12. Qxe4 {[%clk 0:02:29.6]} 12... Nf6 {[%clk 0:01:42.6]}
13. Qh4 {[%clk 0:02:25.8]} 13... h6 {[%clk 0:01:42.9]} 14. Ne5 {[%clk
0:02:18.4]} 14... c5 {[%clk 0:01:37]} 15. Bxh6 {[%clk 0:02:05.9]} 15... gxh6
{[%clk 0:01:05.1]} 16. Qxh6 {[%clk 0:02:06.8]} 16... Ne4 {[%clk 0:00:54.4]} 17.
Bh5 {[%clk 0:00:34.2]} 17... Rf8 {[%clk 0:00:10.8]} 18. Rd3 {[%clk 0:00:17.6]}
18... cxd4 {[%clk 0:00:07.2]} 19. Re1 {[%clk 0:00:16.9]} 19... Bxe5 {[%clk
0:00:06.3]} 20. Rxe4 {[%clk 0:00:16.5]} 20... Bg7 {[%clk 0:00:05.8]} 21. Rg4
{[%clk 0:00:12.1]} 21... f5 {[%clk 0:00:05.4]} 22. Rg6 {[%clk 0:00:11.2]} 22...
Rf6 {[%clk 0:00:04.7]} 23. Rdg3 {[%clk 0:00:09.4]} 23... Rxg6 {[%clk 0:00:04.2]}
24. Rxg6 {[%clk 0:00:08.5]} 24... Bd7 {[%clk 0:00:04.5]} 25. h4 {[%clk
0:00:07.1]} 25... d3 {[%clk 0:00:04.2]} 26. Bd1 {[%clk 0:00:06.7]} 26... Kf8
{[%clk 0:00:03.4]} 27. Qh7 {[%clk 0:00:04.7]} 27... Be8 {[%clk 0:00:03.8]} 28.
Rg3 {[%clk 0:00:04.6]} 28... f4 {[%clk 0:00:02.2]} 29. Rg4 {[%clk 0:00:04.6]}
29... e5 {[%clk 0:00:02.6]} 30. h5 {[%clk 0:00:04.9]} 30... Qf6 {[%clk
0:00:03.2]} 31. h6 {[%clk 0:00:03.9]} 31... Qg6 {[%clk 0:00:03.1]} 32. Rxg6
{[%clk 0:00:03.5]} 32... Bxg6 {[%clk 0:00:03]} 33. Qxg7+ {[%clk 0:00:03.6]}
33... Ke8 {[%clk 0:00:03.2]} 34. Qxg6+ {[%clk 0:00:04.5]} 1-0

[Event "*** Titled Tuesday Blitz"]
[Site "Chess.com"]
[Date "2020.11.24"]
[Round "4"]
[White "Teidi96"]
[Black "sboshaon21"]
[Result "1-0"]
[WhiteElo "2296"]
[BlackElo "2090"]
[TimeControl "180+1"]
[EndTime "10:55:19 PST"]
[Termination "Teidi96 won by resignation"]

1. e4 {[%clk 0:03:00.9]} 1... c5 {[%clk 0:02:58.8]} 2. Nf3 {[%clk 0:03:01.3]}
2... e6 {[%clk 0:02:58.5]} 3. d3 {[%clk 0:03:01.4]} 3... Nc6 {[%clk 0:02:57.9]}
4. g3 {[%clk 0:03:00]} 4... g6 {[%clk 0:02:57.4]} 5. Bg2 {[%clk 0:03:00.1]} 5...
Bg7 {[%clk 0:02:58]} 6. O-O {[%clk 0:03:01]} 6... Nge7 {[%clk 0:02:58.5]} 7. Qe2
{[%clk 0:03:01.4]} 7... O-O {[%clk 0:02:56.8]} 8. c3 {[%clk 0:03:01.9]} 8... d5
{[%clk 0:02:55.9]} 9. e5 {[%clk 0:02:59.1]} 9... d4 {[%clk 0:02:55.7]} 10. c4
{[%clk 0:02:57.9]} 10... h6 {[%clk 0:02:52]} 11. h4 {[%clk 0:02:57.6]} 11... Qc7
{[%clk 0:02:30.2]} 12. Bf4 {[%clk 0:02:55.3]} 12... b6 {[%clk 0:02:19.7]} 13.
Nbd2 {[%clk 0:02:54.2]} 13... Bb7 {[%clk 0:02:19.3]} 14. Ne4 {[%clk 0:02:53.7]}
14... Rfd8 {[%clk 0:02:06.5]} 15. Nf6+ {[%clk 0:02:51.6]} 15... Kh8 {[%clk
0:02:06.2]} 16. Qd2 {[%clk 0:02:51.2]} 16... Ng8 {[%clk 0:01:42.5]} 17. Nxg8
{[%clk 0:02:48.1]} 17... Kxg8 {[%clk 0:01:43.4]} 18. Bxh6 {[%clk 0:02:48.4]}
18... Nxe5 {[%clk 0:01:41.4]} 19. Nxe5 {[%clk 0:02:47.7]} 19... Bxg2 {[%clk
0:01:38.9]} 20. Kxg2 {[%clk 0:02:48.1]} 20... Qxe5 {[%clk 0:01:35.7]} 21. Bxg7
{[%clk 0:02:48]} 21... Kxg7 {[%clk 0:01:33.1]} 22. Rae1 {[%clk 0:02:47.5]} 22...
Qf6 {[%clk 0:01:32.4]} 23. Re4 {[%clk 0:02:47.2]} 23... Rh8 {[%clk 0:01:29.9]}
24. Rf4 {[%clk 0:02:45.4]} 24... Qe7 {[%clk 0:01:23.4]} 25. Qe2 {[%clk
0:02:45.6]} 25... Rae8 {[%clk 0:01:15.9]} 26. Qe5+ {[%clk 0:02:37.6]} 26... Kg8
{[%clk 0:01:14.6]} 27. Rf6 {[%clk 0:02:35.6]} 27... Rh5 {[%clk 0:01:13.7]} 28.
Qf4 {[%clk 0:02:35.4]} 28... Rf5 {[%clk 0:01:08.5]} 29. Rxf5 {[%clk 0:02:34.9]}
29... exf5 {[%clk 0:01:07.8]} 30. h5 {[%clk 0:02:31.6]} 30... Kg7 {[%clk
0:01:02.5]} 31. hxg6 {[%clk 0:02:27.8]} 31... fxg6 {[%clk 0:01:03.1]} 32. Rh1
{[%clk 0:02:28.2]} 32... Rh8 {[%clk 0:01:01.3]} 33. Rxh8 {[%clk 0:02:26.8]}
33... Kxh8 {[%clk 0:01:02.2]} 34. Qh6+ {[%clk 0:02:25.4]} 34... Qh7 {[%clk
0:01:01.8]} 35. Qf8+ {[%clk 0:02:09.4]} 35... Qg8 {[%clk 0:01:01.6]} 36. Qf6+
{[%clk 0:02:09.4]} 36... Qg7 {[%clk 0:01:01.2]} 37. Qh4+ {[%clk 0:02:01.9]}
37... Kg8 {[%clk 0:00:56.1]} 38. Qd8+ {[%clk 0:02:02.3]} 38... Kh7 {[%clk
0:00:55.4]} 39. Qb8 {[%clk 0:01:53.7]} 39... Qe7 {[%clk 0:00:53.7]} 40. Kf3
{[%clk 0:01:44.4]} 40... Kg7 {[%clk 0:00:50.3]} 41. Kf4 {[%clk 0:01:38]} 41...
Kh7 {[%clk 0:00:40.8]} 42. Qe5 {[%clk 0:01:32.6]} 42... Qd8 {[%clk 0:00:32.1]}
43. b3 {[%clk 0:01:15.8]} 43... Kh6 {[%clk 0:00:29.2]} 44. Kf3 {[%clk
0:01:02.5]} 44... Kh7 {[%clk 0:00:27]} 45. Qe6 {[%clk 0:00:54.6]} 45... Qc7
{[%clk 0:00:24]} 46. g4 {[%clk 0:00:47.6]} 46... fxg4+ {[%clk 0:00:19.8]} 47.
Kxg4 {[%clk 0:00:48.5]} 47... Kh6 {[%clk 0:00:18]} 48. f4 {[%clk 0:00:43.8]}
48... Qd8 {[%clk 0:00:16.2]} 49. Qe5 {[%clk 0:00:40.9]} 49... Qc7 {[%clk
0:00:14.8]} 50. Qxc7 {[%clk 0:00:40.3]} 1-0

[Event "*** Titled Tuesday Blitz"]
[Site "Chess.com"]
[Date "2020.11.24"]
[Round "4"]
[White "Zarikovs1999"]
[Black "hermionegrangermagic"]
[Result "0-1"]
[WhiteElo "2381"]
[BlackElo "2592"]
[TimeControl "180+1"]
[EndTime "10:55:20 PST"]
[Termination "hermionegrangermagic won on time"]

1. e4 {[%clk 0:03:00.9]} 1... c5 {[%clk 0:02:37.7]} 2. Nf3 {[%clk 0:02:59.6]}
2... Nc6 {[%clk 0:02:36.6]} 3. d4 {[%clk 0:02:59.6]} 3... cxd4 {[%clk
0:02:37.2]} 4. Nxd4 {[%clk 0:03:00.5]} 4... e5 {[%clk 0:02:36.9]} 5. Nb5 {[%clk
0:03:00.8]} 5... d6 {[%clk 0:02:37.1]} 6. N1c3 {[%clk 0:02:39.9]} 6... a6 {[%clk
0:02:36.5]} 7. Na3 {[%clk 0:02:40.5]} 7... b5 {[%clk 0:02:36.5]} 8. Nd5 {[%clk
0:02:40.2]} 8... Nge7 {[%clk 0:02:35.5]} 9. c4 {[%clk 0:02:37.2]} 9... Nxd5
{[%clk 0:02:34.9]} 10. cxd5 {[%clk 0:02:30.7]} 10... Nd4 {[%clk 0:02:34.4]} 11.
Bd3 {[%clk 0:02:31.3]} 11... Be7 {[%clk 0:02:31.6]} 12. O-O {[%clk 0:02:16.7]}
12... O-O {[%clk 0:02:27.8]} 13. Be3 {[%clk 0:02:17.2]} 13... f5 {[%clk
0:02:23.8]} 14. Bxd4 {[%clk 0:02:01.4]} 14... exd4 {[%clk 0:02:23.3]} 15. Nc2
{[%clk 0:02:02.3]} 15... Bf6 {[%clk 0:02:08.6]} 16. exf5 {[%clk 0:02:01.5]}
16... Bb7 {[%clk 0:02:01.2]} 17. Nb4 {[%clk 0:02:00.4]} 17... Qd7 {[%clk
0:01:53.6]} 18. Qb3 {[%clk 0:01:40.4]} 18... Kh8 {[%clk 0:01:47.1]} 19. Rac1
{[%clk 0:01:34]} 19... Rac8 {[%clk 0:01:46.2]} 20. Rfe1 {[%clk 0:01:30.7]} 20...
Rc5 {[%clk 0:01:36]} 21. Be4 {[%clk 0:01:15.5]} 21... Re8 {[%clk 0:01:07.1]} 22.
Qd3 {[%clk 0:00:58.4]} 22... Qe7 {[%clk 0:00:58.1]} 23. f3 {[%clk 0:00:55.4]}
23... Bg5 {[%clk 0:00:52.3]} 24. Rcd1 {[%clk 0:00:37.5]} 24... Be3+ {[%clk
0:00:51.7]} 25. Kh1 {[%clk 0:00:38.1]} 25... Qh4 {[%clk 0:00:44.6]} 26. g3
{[%clk 0:00:20.2]} 26... Qf6 {[%clk 0:00:43.5]} 27. Nc2 {[%clk 0:00:18.9]} 27...
h6 {[%clk 0:00:32.2]} 28. Nxe3 {[%clk 0:00:18.6]} 28... dxe3 {[%clk 0:00:31.9]}
29. Re2 {[%clk 0:00:09.4]} 29... Re5 {[%clk 0:00:24.3]} 30. Rxe3 {[%clk
0:00:07.1]} 30... Bxd5 {[%clk 0:00:15.8]} 31. Qe2 {[%clk 0:00:03.4]} 31... Bc4
{[%clk 0:00:13.3]} 32. Qf2 {[%clk 0:00:03]} 32... d5 {[%clk 0:00:12.3]} 33. Bb1
{[%clk 0:00:02.2]} 33... Rc8 {[%clk 0:00:10.5]} 34. Rxe5 {[%clk 0:00:02.2]}
34... Qxe5 {[%clk 0:00:10.5]} 35. Kg2 {[%clk 0:00:02.2]} 35... d4 {[%clk
0:00:10.2]} 36. Qxd4 {[%clk 0:00:01.9]} 36... Qe7 {[%clk 0:00:09]} 0-1

[Event "*** Titled Tuesday Blitz"]
[Site "Chess.com"]
[Date "2020.11.24"]
[Round "4"]
[White "Astaneh"]
[Black "Smirnov_Pavel"]
[Result "0-1"]
[WhiteElo "2611"]
[BlackElo "2825"]
[TimeControl "180+1"]
[EndTime "10:55:21 PST"]
[Termination "Smirnov_Pavel won on time"]

1. d4 {[%clk 0:03:00.9]} 1... Nf6 {[%clk 0:02:59.4]} 2. Bf4 {[%clk 0:03:00.2]}
2... e6 {[%clk 0:02:59.1]} 3. e3 {[%clk 0:02:56.4]} 3... c5 {[%clk 0:02:58.1]}
4. Nf3 {[%clk 0:02:51.7]} 4... cxd4 {[%clk 0:02:58]} 5. exd4 {[%clk 0:02:51]}
5... b6 {[%clk 0:02:58.4]} 6. c3 {[%clk 0:02:46.7]} 6... Be7 {[%clk 0:02:56.2]}
7. Bd3 {[%clk 0:02:46.6]} 7... Ba6 {[%clk 0:02:53.1]} 8. Bxa6 {[%clk 0:02:41.5]}
8... Nxa6 {[%clk 0:02:54]} 9. O-O {[%clk 0:02:39.8]} 9... O-O {[%clk 0:02:53.1]}
10. Qd3 {[%clk 0:02:38.6]} 10... Nc7 {[%clk 0:02:51.9]} 11. c4 {[%clk
0:02:33.2]} 11... d5 {[%clk 0:02:45.7]} 12. b3 {[%clk 0:02:32.1]} 12... Bd6
{[%clk 0:02:16]} 13. Bg5 {[%clk 0:02:08.2]} 13... h6 {[%clk 0:02:13.8]} 14. Bh4
{[%clk 0:02:06.7]} 14... Rc8 {[%clk 0:02:06.1]} 15. Nc3 {[%clk 0:02:02.7]} 15...
dxc4 {[%clk 0:02:00.3]} 16. bxc4 {[%clk 0:02:01.7]} 16... Be7 {[%clk 0:02:00.5]}
17. Rfd1 {[%clk 0:01:26.5]} 17... Nh5 {[%clk 0:01:39.2]} 18. Bxe7 {[%clk
0:01:03]} 18... Qxe7 {[%clk 0:01:40.1]} 19. d5 {[%clk 0:01:03.2]} 19... exd5
{[%clk 0:01:39.7]} 20. cxd5 {[%clk 0:00:59.2]} 20... Nf4 {[%clk 0:01:39.2]} 21.
Qf5 {[%clk 0:00:54.8]} 21... Qb4 {[%clk 0:01:32]} 22. Ne4 {[%clk 0:00:43.6]}
22... Ncxd5 {[%clk 0:01:12.3]} 23. Rxd5 {[%clk 0:00:44.5]} 23... Nxd5 {[%clk
0:01:10.4]} 24. Qxd5 {[%clk 0:00:45.4]} 24... Rfd8 {[%clk 0:01:09.9]} 25. Qf5
{[%clk 0:00:42.9]} 25... Qb2 {[%clk 0:00:59.8]} 26. Rf1 {[%clk 0:00:32.5]} 26...
Rc1 {[%clk 0:00:45.9]} 27. g3 {[%clk 0:00:30.1]} 27... Rxf1+ {[%clk 0:00:41.6]}
28. Kxf1 {[%clk 0:00:31]} 28... Qxa2 {[%clk 0:00:41.5]} 29. Ne5 {[%clk
0:00:10.1]} 29... Qd5 {[%clk 0:00:35.9]} 30. f3 {[%clk 0:00:03.2]} 30... Re8
{[%clk 0:00:19]} 31. f4 {[%clk 0:00:03.5]} 31... Rd8 {[%clk 0:00:15.5]} 32. Kg2
{[%clk 0:00:02.8]} 32... b5 {[%clk 0:00:14.4]} 33. Kh3 {[%clk 0:00:03]} 33... b4
{[%clk 0:00:14.6]} 34. Kg4 {[%clk 0:00:01.3]} 34... b3 {[%clk 0:00:14]} 35. Nc3
{[%clk 0:00:01]} 35... Qe6 {[%clk 0:00:13]} 0-1

[Event "*** Titled Tuesday Blitz"]
[Site "Chess.com"]
[Date "2020.11.24"]
[Round "4"]
[White "oykuince"]
[Black "BikingBrian"]
[Result "0-1"]
[WhiteElo "1973"]
[BlackElo "2256"]
[TimeControl "180+1"]
[EndTime "10:55:22 PST"]
[Termination "BikingBrian won on time"]

1. e4 {[%clk 0:02:57.1]} 1... c5 {[%clk 0:02:57.4]} 2. Nf3 {[%clk 0:02:52.8]}
2... g6 {[%clk 0:02:57.7]} 3. d4 {[%clk 0:02:52.4]} 3... cxd4 {[%clk 0:02:58.6]}
4. Qxd4 {[%clk 0:02:50]} 4... Nf6 {[%clk 0:02:57.9]} 5. e5 {[%clk 0:02:50.2]}
5... Nc6 {[%clk 0:02:58.2]} 6. Qa4 {[%clk 0:02:47.7]} 6... Nd5 {[%clk 0:02:58]}
7. Qb3 {[%clk 0:02:47.7]} 7... Nc7 {[%clk 0:02:57.3]} 8. Bc4 {[%clk 0:02:42.9]}
8... Ne6 {[%clk 0:02:57.2]} 9. Bxe6 {[%clk 0:02:39.1]} 9... dxe6 {[%clk
0:02:55.9]} 10. O-O {[%clk 0:02:38.2]} 10... Bg7 {[%clk 0:02:56.3]} 11. Bf4
{[%clk 0:02:37.8]} 11... Qc7 {[%clk 0:02:56.5]} 12. Re1 {[%clk 0:02:31.3]} 12...
O-O {[%clk 0:02:56.4]} 13. Nc3 {[%clk 0:02:30.9]} 13... a6 {[%clk 0:02:56.8]}
14. a4 {[%clk 0:02:26.4]} 14... b6 {[%clk 0:02:51.8]} 15. Rad1 {[%clk
0:02:08.9]} 15... Bb7 {[%clk 0:02:51.8]} 16. Ne4 {[%clk 0:01:45.1]} 16... Rad8
{[%clk 0:02:47.1]} 17. Rxd8 {[%clk 0:01:02.2]} 17... Rxd8 {[%clk 0:02:48]} 18.
Qc3 {[%clk 0:00:50.4]} 18... Qd7 {[%clk 0:02:24.8]} 19. h3 {[%clk 0:00:41.4]}
19... Na5 {[%clk 0:02:13.5]} 20. Qb4 {[%clk 0:00:36.4]} 20... Qc7 {[%clk
0:02:00.5]} 21. Bg3 {[%clk 0:00:30.1]} 21... Nc4 {[%clk 0:01:52.9]} 22. Nf6+
{[%clk 0:00:20.6]} 22... Kh8 {[%clk 0:01:44.8]} 23. Qc3 {[%clk 0:00:18.4]} 23...
Qc5 {[%clk 0:01:06]} 24. Ne4 {[%clk 0:00:17.9]} 24... Qc8 {[%clk 0:01:02.4]} 25.
b3 {[%clk 0:00:17.1]} 25... Na5 {[%clk 0:01:00.6]} 26. Qb4 {[%clk 0:00:16.1]}
26... Qc7 {[%clk 0:00:57.1]} 27. c4 {[%clk 0:00:14.2]} 27... Nc6 {[%clk
0:00:56.4]} 28. Qc3 {[%clk 0:00:13.9]} 28... Qd7 {[%clk 0:00:50.7]} 29. Neg5
{[%clk 0:00:13.9]} 29... Kg8 {[%clk 0:00:47.1]} 30. Qe3 {[%clk 0:00:12.6]} 30...
Nd4 {[%clk 0:00:41.3]} 31. Nxd4 {[%clk 0:00:11.7]} 31... Qxd4 {[%clk 0:00:40.9]}
32. Qe2 {[%clk 0:00:10]} 32... h6 {[%clk 0:00:37.4]} 33. Nf3 {[%clk 0:00:08.8]}
33... Qd3 {[%clk 0:00:37.5]} 34. Kh2 {[%clk 0:00:06.3]} 34... Bxf3 {[%clk
0:00:36.4]} 35. gxf3 {[%clk 0:00:05.3]} 35... Qxe2 {[%clk 0:00:36.1]} 36. Rxe2
{[%clk 0:00:05.4]} 36... Rd3 {[%clk 0:00:36]} 37. b4 {[%clk 0:00:04.2]} 37...
Rxf3 {[%clk 0:00:33.3]} 38. Rd2 {[%clk 0:00:04.3]} 38... Rc3 {[%clk 0:00:32.1]}
39. Rd8+ {[%clk 0:00:03.3]} 39... Kh7 {[%clk 0:00:32.2]} 40. Rc8 {[%clk
0:00:03.8]} 40... a5 {[%clk 0:00:26]} 41. b5 {[%clk 0:00:02.8]} 41... g5 {[%clk
0:00:21.7]} 0-1

[Event "*** Titled Tuesday Blitz"]
[Site "Chess.com"]
[Date "2020.11.24"]
[Round "4"]
[White "Mr_Heisenberg13"]
[Black "Legendinunknown"]
[Result "1-0"]
[WhiteElo "2518"]
[BlackElo "2673"]
[TimeControl "180+1"]
[EndTime "10:55:23 PST"]
[Termination "Mr_Heisenberg13 won on time"]

1. e4 {[%clk 0:03:00.9]} 1... c6 {[%clk 0:02:58]} 2. d4 {[%clk 0:03:00.2]} 2...
d5 {[%clk 0:02:58]} 3. e5 {[%clk 0:03:00.3]} 3... Bf5 {[%clk 0:02:57]} 4. h4
{[%clk 0:02:59.2]} 4... h5 {[%clk 0:02:56.3]} 5. Bg5 {[%clk 0:02:58.9]} 5... Qb6
{[%clk 0:02:54.1]} 6. Bd3 {[%clk 0:02:54.2]} 6... Bxd3 {[%clk 0:02:52.8]} 7.
Qxd3 {[%clk 0:02:55.1]} 7... e6 {[%clk 0:02:53]} 8. Nd2 {[%clk 0:02:54.5]} 8...
Nd7 {[%clk 0:02:50.7]} 9. Ngf3 {[%clk 0:02:54.1]} 9... Ne7 {[%clk 0:02:49.3]}
10. Bxe7 {[%clk 0:02:47.2]} 10... Bxe7 {[%clk 0:02:48.8]} 11. b3 {[%clk
0:02:47.2]} 11... c5 {[%clk 0:02:48.4]} 12. c4 {[%clk 0:02:46.8]} 12... Qc6
{[%clk 0:02:39.3]} 13. O-O {[%clk 0:02:42.1]} 13... O-O-O {[%clk 0:02:38.5]} 14.
Rac1 {[%clk 0:02:40.3]} 14... Kb8 {[%clk 0:02:38.1]} 15. dxc5 {[%clk 0:02:32.9]}
15... Nxc5 {[%clk 0:02:36.8]} 16. Qe2 {[%clk 0:02:28.1]} 16... d4 {[%clk
0:02:28.3]} 17. b4 {[%clk 0:02:09]} 17... Na4 {[%clk 0:02:26.6]} 18. a3 {[%clk
0:02:04.6]} 18... d3 {[%clk 0:02:02.1]} 19. Qe3 {[%clk 0:01:53.5]} 19... Nb6
{[%clk 0:01:53.1]} 20. c5 {[%clk 0:01:42.2]} 20... Nd5 {[%clk 0:01:51.1]} 21.
Qe4 {[%clk 0:01:38]} 21... Qa6 {[%clk 0:01:37.8]} 22. Nc4 {[%clk 0:01:35.5]}
22... f5 {[%clk 0:01:31.9]} 23. exf6 {[%clk 0:01:34.6]} 23... Bxf6 {[%clk
0:01:23.3]} 24. Nfe5 {[%clk 0:01:30.6]} 24... d2 {[%clk 0:01:15.9]} 25. Nxd2
{[%clk 0:01:22]} 25... Qxa3 {[%clk 0:01:15.5]} 26. c6 {[%clk 0:01:17.1]} 26...
b6 {[%clk 0:00:12.3]} 27. c7+ {[%clk 0:01:08.6]} 27... Nxc7 {[%clk 0:00:10.8]}
28. Nc6+ {[%clk 0:01:08.3]} 28... Kc8 {[%clk 0:00:10.8]} 29. Nxd8 {[%clk
0:01:08.3]} 29... Rxd8 {[%clk 0:00:11]} 30. Qa8+ {[%clk 0:01:06.4]} 30... Kd7
{[%clk 0:00:09.8]} 31. Qc6+ {[%clk 0:01:05.3]} 31... Ke7 {[%clk 0:00:09.4]} 32.
Qxc7+ {[%clk 0:01:04.4]} 32... Rd7 {[%clk 0:00:09.6]} 33. Qc2 {[%clk 0:01:03]}
33... Qxb4 {[%clk 0:00:09.4]} 34. Nf3 {[%clk 0:01:00.7]} 34... Qg4 {[%clk
0:00:07.3]} 35. Rfd1 {[%clk 0:00:57.8]} 35... Rxd1+ {[%clk 0:00:06.8]} 36. Rxd1
{[%clk 0:00:58.7]} 36... a5 {[%clk 0:00:06.1]} 37. Qc7+ {[%clk 0:00:58.1]} 37...
Kf8 {[%clk 0:00:06.2]} 38. Qxb6 {[%clk 0:00:53.7]} 38... a4 {[%clk 0:00:06.2]}
39. Qa7 {[%clk 0:00:47.4]} 39... Kg8 {[%clk 0:00:05.4]} 40. Re1 {[%clk
0:00:42.2]} 40... Qc4 {[%clk 0:00:04.1]} 41. Ng5 {[%clk 0:00:37.7]} 41... Bxg5
{[%clk 0:00:03.9]} 42. hxg5 {[%clk 0:00:38.6]} 42... Kh7 {[%clk 0:00:04.8]} 43.
Qf7 {[%clk 0:00:37.5]} 43... a3 {[%clk 0:00:02.8]} 44. Qxe6 {[%clk 0:00:36.1]}
1-0